Cogmind - Beta 10.2 @@@ ROGUE MODE // 2020.12.15 @ 06:56:17 Player: Hermelin Result: Escaped! Performance ------------- Evolutions (9) 4500 Regions Visited (26) 5200 Robots Destroyed (380) 1900 Value Destroyed (17232) 17232 Prototype IDs (62) 1240 Alien Tech Used (0) 0 Bonus (11661) 11661 TOTAL SCORE: 41733 Bonus ------- Triggered High Security 500 High Alert Combat Kills 5683 Follower Combat Kills 2282 Network Hubs Disabled 400 Aligned with FarCom 300 Met Data Miner 300 Met Imprinter 300 A7 Reached Mainframe 300 Win 3000 Friendly Fire -1404 Cogmind --------- Core Integrity 1347/1600 Matter 264/300 Energy 217/280 System Corruption 3% Temperature Cool (12) Movement Flying (31) Location To Epsilon Eridani Parts ------- > --- POWER (2) -------- Light Quantum Reactor Light Quantum Reactor > --- PROPULSION (8) --- Impulse Thruster Array Impulse Thruster Array Impulse Thruster Array Impulse Thruster Array > --- UTILITY (11) ----- Advanced Heat Sink Advanced Heat Sink Large Storage Unit Improved Targeting Computer Advanced Targeting Computer Advanced Reaction Control System Experimental Power Shielding Improved Powered Armor Advanced Force Field Improved Hacking Suite > --- WEAPON (4) ------- Enhanced Quantum Rifle Enhanced Quantum Rifle Enhanced Quantum Rifle Plasma Lance > --- INVENTORY (10) --- Light Quantum Reactor Advanced Medium Treads Advanced Medium Treads Biometal Heavy Treads Impulse Thruster Array Precision Phase Gun Ragnarok Missile Launcher Ragnarok Missile Launcher Peak State ------------ > --- POWER ------------ Light Quantum Reactor Light Quantum Reactor > --- PROPULSION ------- Impulse Thruster Array Impulse Thruster Array Impulse Thruster Array Impulse Thruster Array > --- UTILITY ---------- Advanced Heat Sink Advanced Heat Sink Advanced Heat Sink Large Storage Unit Improved Targeting Computer Advanced Targeting Computer Advanced Reaction Control System Experimental Power Shielding Improved Powered Armor Advanced Force Field Improved Hacking Suite > --- WEAPON ----------- Enhanced Quantum Rifle Enhanced Quantum Rifle Enhanced Quantum Rifle Plasma Lance > --- INVENTORY -------- Light Quantum Reactor Advanced Medium Treads Advanced Medium Treads Biometal Heavy Treads Impulse Thruster Array Precision Phase Gun Ragnarok Missile Launcher Ragnarok Missile Launcher [Rating: 180] Favorites ----------- Power Micro Fission Core Engine Angular Momentum Engine Power Core Micro Fission Core Reactor Particle Reactor Propulsion Armored Treads Treads Armored Treads Leg Carbon-fiber Leg Hover Unit Gravmag System Flight Unit Impulse Thruster Array Utility Large Storage Unit Device Advanced Heat Sink Storage Large Storage Unit Processor Improved Targeting Computer Hackware Improved Hacking Suite Protection Centrium Medium Armor Plating Weapon Heavy Gauss Cannon Energy Gun Storm Laser Energy Cannon Heavy Ion Cannon Ballistic Gun Coil Gun Ballistic Cannon Heavy Gauss Cannon Launcher Advanced EMP Blaster Piercing Weapon CR-A16's Pointy Stick Build | -11 -10 -10 -10 -9 -8 -8 -7 -7 -7 -7 -7 -6 -6 -6 -6 -6 -5 -5 -4 -4 -4 -4 -4 -3 -2 -1 ------- Run | Scr Mat Min Exi Min Mat Sto Fac Was Fac Low Dat Pro Fac Low Low Zio Pro Fac Fac Ext Cet Arc Hub Res Res Acc Slots Evolved 18 | . . . . . 4 . 2 . . . . . 2 . . . . 2 2 . . . . 2 2 2 Power 1 | . . . . . . . . . . . . . . . . . . . 1 . . . . . . . Propulsion 6 | . . . . . 1 . 1 . . . . . 1 . . . . 1 . . . . . . . 2 Utility 9 | . . . . . 2 . 1 . . . . . . . . . . 1 1 . . . . 2 2 . Weapon 2 | . . . . . 1 . . . . . . . 1 . . . . . . . . . . . . . Parts Attached 387 | 7 7 . 3 . 20 9 17 . 20 . . 6 10 1 4 5 29 4 37 16 4 8 8 57 69 46 Power 34 | 1 1 . . . . 1 . . 1 . . . 1 . . . 7 . 4 . . . . 7 7 4 Engine 9 | 1 1 . . . . 1 . . 1 . . . 1 . . . 4 . . . . . . . . . Core 10 | . . . . . . . . . . . . . . . . . 1 . 2 . . . . 4 3 . Reactor 15 | . . . . . . . . . . . . . . . . . 2 . 2 . . . . 3 4 4 Propulsion 101 | 2 1 . . . 7 2 5 . 9 . . 2 2 . 1 . 8 1 15 10 . 2 2 8 18 6 Treads 71 | 2 1 . . . 7 2 5 . 4 . . 2 2 . 1 . 1 . 12 10 . 2 2 8 10 . Leg 13 | . . . . . . . . . . . . . . . . . 6 . 2 . . . . . 5 . Wheel . | . . . . . . . . . . . . . . . . . . . . . . . . . . . Hover 9 | . . . . . . . . . 4 . . . . . . . 1 . 1 . . . . . 3 . Flight 8 | . . . . . . . . . 1 . . . . . . . . 1 . . . . . . . 6 Utility 129 | 2 . . 3 . 4 3 2 . 7 . . 3 5 . 1 4 6 3 11 4 1 4 4 23 18 21 Device 76 | . . . . . 3 2 1 . 2 . . 2 4 . 1 4 3 2 6 4 . 3 1 16 10 12 Storage 20 | 2 . . 3 . . . . . 1 . . 1 . . . . 3 . 4 . . . 2 1 1 2 Processor 10 | . . . . . . . 1 . 3 . . . . . . . . . 1 . . . . 1 2 2 Hackware 3 | . . . . . . . . . 1 . . . . . . . . . . . . . . . . 2 Protection 20 | . . . . . 1 1 . . . . . . 1 . . . . 1 . . 1 1 1 5 5 3 Artifact . | . . . . . . . . . . . . . . . . . . . . . . . . . . . Weapon 123 | 2 5 . . . 9 3 10 . 3 . . 1 2 1 2 1 8 . 7 2 3 2 2 19 26 15 Energy Gun 23 | . . . . . . . . . . . . . . . . 1 1 . . . . . . 1 10 10 Energy Cannon 29 | . 2 . . . 3 2 3 . 1 . . 1 1 . . . 1 . 2 . 1 . . 1 9 2 Ballistic Gun 21 | 2 . . . . . . . . 1 . . . 1 1 . . . . . . . . 1 11 4 . Ballistic Cannon 32 | . 3 . . . 5 1 4 . . . . . . . 1 . 4 . 5 2 2 1 1 2 1 . Launcher 11 | . . . . . 1 . 3 . 1 . . . . . 1 . . . . . . . . 3 1 1 Special Weapon . | . . . . . . . . . . . . . . . . . . . . . . . . . . . Impact Weapon . | . . . . . . . . . . . . . . . . . . . . . . . . . . . Slashing Weapon . | . . . . . . . . . . . . . . . . . . . . . . . . . . . Piercing Weapon 7 | . . . . . . . . . . . . . . . . . 2 . . . . 1 . 1 1 2 Special Melee Weapon . | . . . . . . . . . . . . . . . . . . . . . . . . . . . Unidentified Prototypes 18 | . . . . . . . . . . . . . 1 . . 4 . . . . 1 1 . 4 2 5 Parts Lost 140 | . . . . . 4 7 . 5 . . . 1 . 1 4 . 14 . 7 . . . 9 13 69 6 Power 14 | . . . . . . 1 . . . . . 1 . . . . 1 . 3 . . . . 1 6 1 Propulsion 41 | . . . . . 1 2 . 1 . . . . . . 2 . 10 . 1 . . . 3 2 19 . Utility 44 | . . . . . 2 2 . 2 . . . . . . 1 . 2 . 2 . . . 2 3 23 5 Weapon 41 | . . . . . 1 2 . 2 . . . . . 1 1 . 1 . 1 . . . 4 7 21 . Highest Loss Streak 25 | . . . . . 3 6 . 5 . . . 1 . 1 1 . 5 . 5 . . . 6 6 25 2 Average Slot Usage (%) 86 | . 99 100 100 100 99 97 100 53 68 100 100 92 93 92 83 74 60 76 95 93 83 83 82 80 75 71 Engine 3 | . 14 14 14 14 9 8 7 3 . 7 7 . 5 6 6 6 . . . . . . . . . . Core 2 | . . . . . . . . . . . . . . . . . . . 3 10 10 10 10 6 3 . Reactor 1 | . . . . . . . . . . . . . . . . . 4 5 5 . . . . 2 3 7 Treads 19 | . 28 28 28 28 27 25 30 15 11 30 30 30 33 33 24 26 2 5 24 25 15 15 14 12 10 . Leg 1 | . . . . . . . . . . . . . . . . . 11 5 2 . . . . . 1 . Device 10 | . . . . . 17 9 7 4 5 . . 6 6 6 6 16 11 15 13 15 11 10 9 12 15 15 Storage 13 | . 28 28 28 28 18 18 15 8 . 7 7 7 6 6 6 6 7 11 12 15 15 15 15 13 10 3 Processor 5 | . . . . . . . 7 4 16 23 23 15 9 6 6 6 6 5 5 5 5 5 5 8 11 11 Protection 2 | . . . . . . 9 7 3 . . . . 2 6 5 . . . 3 . 3 4 5 4 2 4 Energy Gun 1 | . . . . . . . . . . . . . . . . 4 3 . . . . . . . 3 8 Energy Cannon 4 | . 12 14 14 14 9 9 6 3 5 7 7 14 13 13 6 1 . . 2 . . . . . 4 1 Ballistic Gun 2 | . 3 . . . . . . . 5 7 7 7 9 12 9 1 . . . . . . . 13 3 . Ballistic Cannon 10 | . 12 14 14 14 17 17 15 7 . . . . . . 5 1 7 23 18 21 20 20 19 1 . . Naked Turns 42 | . . . . . . . . 37 5 . . . . . . . . . . . . . . . . . Heaviest Build 120 | 17 22 22 62 62 79 83 86 86 23 23 23 27 57 58 60 69 74 75 115 97 103 103 111 115 120 101 Greatest Support 230 | 40 40 40 40 40 60 62 84 84 80 80 80 80 112 112 112 82 82 27 177 210 210 210 215 230 220 108 Greatest Overweight (x) 34 | . . . 1 1 1 4 1 1 1 . . . . . . . 4 2 4 1 . 34 1 1 10 . Average Overweight (x) . | . . . . 1 . 1 . . . . . . . . . . 1 2 . . . 11 . . . . Largest Inventory Capacity 22 | 8 8 8 18 18 18 18 18 18 6 6 6 6 6 6 6 6 10 10 20 20 20 20 22 22 22 10 Average Capacity 14 | 6 8 8 15 18 18 18 18 11 4 6 6 6 6 6 6 6 6 10 16 20 20 20 20 21 18 8 Most Carried 22 | 4 8 8 11 11 18 18 18 18 4 4 4 6 6 6 6 6 10 10 20 20 20 20 21 22 22 10 Average Carried 13 | 1 7 8 9 11 16 16 17 11 3 4 4 5 5 6 5 6 5 9 16 19 19 19 19 20 13 8 Final Capacity 22 | 8 8 8 18 18 18 18 18 4 6 6 6 6 6 6 6 6 10 10 20 20 20 20 22 22 4 10 Final Carried 22 | 4 8 8 11 11 15 18 18 4 4 4 4 6 6 6 6 6 10 10 20 20 20 20 17 22 4 10 Class Distribution -------------------- 19% | Scavenger-Skirmisher 16% | Mutant 13% | Skirmisher 11% | Scavenger-Gunner 6% | Gunner 5% | Scavenger-Mutant 5% | Machinist-Gunner 5% | Commander-Skirmisher 4% | Commander-Gunner 3% | Machinist-Mutant Dominant Class ---------------- Mutant | -10/Materials Mutant | -10/Mines Mutant | -10/Exiles Mutant | -9/Mines Skirmisher | -8/Materials Mutant | -8/Storage Skirmisher | -7/Factory Mutant | -7/Waste Mutant | -7/Factory Machinist-Mutant | -7/Lower Caves Machinist-Mutant | -7/Data Miner Machinist-Gunner | -6/Proximity Caves Skirmisher | -6/Factory Gunner | -6/Lower Caves Scavenger-Gunner | -6/Lower Caves Commander-Gunner | -6/Zion Scavenger-Gunner | -5/Proximity Caves Skirmisher | -5/Factory Machinist-Gunner | -4/Factory Scavenger-Skirmisher | -4/Extension Scavenger-Skirmisher | -4/Cetus Scavenger-Skirmisher | -4/Archives Scavenger-Skirmisher | -4/Hub_04(d) Scavenger-Mutant | -3/Research Scavenger-Gunner | -2/Research Scavenger-Sprinter | -1/Access Resources | -11 -10 -10 -10 -9 -8 -8 -7 -7 -7 -7 -7 -6 -6 -6 -6 -6 -5 -5 -4 -4 -4 -4 -4 -3 -2 -1 ----------- Run | Scr Mat Min Exi Min Mat Sto Fac Was Fac Low Dat Pro Fac Low Low Zio Pro Fac Fac Ext Cet Arc Hub Res Res Acc Matter Collected 13172 | 279 389 16 . 62 746 370 333 83 208 . . 328 307 136 260 50 265 . 1423 1112 358 388 694 3961 974 430 Remotely 1820 | . . . . . . . . . . . . . . . . . . . 802 . . . . 1018 . . Salvage Created 18351 | 66 537 43 . 96 1402 793 661 . 367 . . 409 563 348 526 . 1423 . 1717 658 76 317 472 3737 3258 882 Parts 781 | 2 25 4 . 13 77 33 37 . 10 . . 12 16 15 14 . 50 . 56 32 1 16 18 196 119 35 Haulers Intercepted 23 | . 2 . . . 5 3 1 . . . . . 2 . . . . . 2 . . . 1 3 1 3 Recyclers Shooed 8 | . . . . . 1 . . . 1 . . . . . . . . . 2 1 . . . 3 . . Parts Field Recycled . | . . . . . . . . . . . . . . . . . . . . . . . . . . . Retrieved Matter . | . . . . . . . . . . . . . . . . . . . . . . . . . . . Parts Self-Destructed 93 | . . . . . . . . . . . . 18 . 14 11 . 50 . . . . . . . . . Prevented . | . . . . . . . . . . . . . . . . . . . . . . . . . . . Kills | -11 -10 -10 -10 -9 -8 -8 -7 -7 -7 -7 -7 -6 -6 -6 -6 -6 -5 -5 -4 -4 -4 -4 -4 -3 -2 -1 ------- Run | Scr Mat Min Exi Min Mat Sto Fac Was Fac Low Dat Pro Fac Low Low Zio Pro Fac Fac Ext Cet Arc Hub Res Res Acc Combat Hostiles Destroyed 274 | . 12 3 . 6 32 13 12 . 1 . . 5 4 7 7 . 25 . 23 9 4 4 11 50 42 4 Melee 5 | . . . . . . . . . . . . . . . . . 1 . . . . . . . 3 1 Guns 67 | . . . . . . . . . . . . 2 2 3 2 . 17 . . . . . . 28 11 2 Cannons 155 | . 12 3 . 6 29 13 8 . 1 . . 3 2 4 5 . 2 . 19 9 4 4 11 5 14 1 AOE 36 | . . . . . 3 . 4 . . . . . . . . . 3 . 2 . . . . 17 7 . Classes Destroyed 20 | 1 5 . . . 6 . 2 . . . . 1 1 . 1 . . . . . . . . 1 2 . Worker 30 | . 1 . . . 1 2 2 . . . . . . . . . . . 2 . . . 5 15 2 . Builder 16 | . . . . . 1 1 . . . . . . . . . . . . 1 1 . . . 8 4 . Tunneler 3 | . . . . . 1 . . . . . . . . . . . . . . . . . . 2 . . Hauler 23 | . 2 . . . 5 3 1 . . . . . 2 . . . . . 2 . . . 1 3 1 3 Recycler 18 | 1 . . . . . 1 . . 3 . . . 1 . . . . . 4 1 . . . 5 . 2 Mechanic 1 | . . . . . 1 . . . . . . . . . . . . . . . . . . . . . Operator 5 | . . . . . . . . . . . . . 1 . . . . . . . . 4 . . . . Watcher 7 | . 1 . . . . 1 . . 1 . . . . . . . . . 1 1 . . 1 1 . . Swarmer 43 | . 3 3 . 6 7 2 . . . . . . . . 3 . 5 . 5 . . . . 9 . . Saboteur 2 | . . . . . . . . . . . . . . . . . . . . . . . . 1 1 . Grunt 107 | . 9 . . . 16 8 4 . . . . . 2 3 . . 15 . 5 5 . . 1 16 23 . Brawler 8 | . . . . . 2 . . . . . . 1 . . . . 1 . . . . . . 2 2 . Duelist 7 | . . . . . 2 . 1 . . . . 1 . . . . . . . . . . . 1 2 . Protector 1 | . . . . . . . . . . . . . . . . . . . . . . . . . 1 . Sentry 37 | . . . . . 5 4 2 . 1 . . 1 2 . 1 . 1 . 3 3 . 4 2 2 4 2 Hunter 29 | . . . . . . . 2 . . . . . . 2 . . 2 . 4 . 2 . 5 10 2 . Programmer 31 | . . . . . . . 3 . . . . 1 . 1 1 . 1 . 5 . . . 2 9 6 2 Behemoth 6 | . . . . . . . . . . . . 1 . 1 1 . . . 1 1 . . 1 . . . Cetus Guard 2 | . . . . . . . . . . . . . . . . . . . . . 2 . . . . . Striker 1 | . . . . . . . . . . . . . . . . . . . . . . . . . 1 . Packrat 2 | . . . . . . . . . . . . 2 . . . . . . . . . . . . . . Butcher 2 | . . . . . . . . . . . . . . . . . 1 . . 1 . . . . . . Mutant 1 | . . . . . . . . . . . . . . . 1 . . . . . . . . . . . Best Kill Streak 17 | 1 4 3 . 3 13 12 6 . 4 . . 3 3 3 3 . 8 . 8 4 2 2 3 14 17 2 Combat Bots Only 10 | . 4 3 . 3 10 5 5 . 1 . . 3 2 3 3 . 8 . 7 2 2 2 3 6 7 1 Max Kills in Single Turn 4 | 1 2 1 . 1 3 4 4 . 1 . . 1 2 1 1 . 3 . 3 1 1 1 2 3 3 1 Gunslinging 1 | . . . . . . . . . . . . . . . . . . . . . . . . 1 . . Exploded 4 | . . . . . 2 . 4 . . . . . . . . . 2 . 2 . . . . 3 2 . Melee 1 | . . . . . . . . . . . . . . . . . 1 . . . . . . . 1 1 Uniques/NPCs Destroyed . | . . . . . . . . . . . . . . . . . . . . . . . . . . . Combat | -11 -10 -10 -10 -9 -8 -8 -7 -7 -7 -7 -7 -6 -6 -6 -6 -6 -5 -5 -4 -4 -4 -4 -4 -3 -2 -1 -------- Run | Scr Mat Min Exi Min Mat Sto Fac Was Fac Low Dat Pro Fac Low Low Zio Pro Fac Fac Ext Cet Arc Hub Res Res Acc Damage Taken 34306 | . 359 46 . 96 1295 1056 303 298 71 . . 815 149 785 758 . 2227 . 3289 1332 592 184 2817 4112 11789 1933 Core 2952 | . 20 6 . 6 151 108 60 150 . . . 71 . 16 17 . 294 . 182 23 . 27 66 171 1331 253 Absorbed by Shields 583 | . . . . . 50 38 . . . . . . . . . . . . 25 230 25 . . . 91 124 Reduced by Siege Mode 1669 | . . . . . . . . . . . . . . . . . . . . 71 36 13 282 364 903 . Core Remaining (%) 71 | 100 . . . 87 . 52 . . . . . 59 . . . . 61 100 . . . . 74 86 8 84 Volleys Fired 743 | 2 29 4 . 8 77 45 18 7 12 . . 22 17 15 30 . 38 . 71 23 11 11 33 135 120 15 Largest 4 | 2 2 2 . 2 3 3 3 3 2 . . 3 4 4 4 . 1 . 4 4 4 4 4 4 4 4 Hottest 376 | 40 99 99 . 99 156 156 161 161 88 . . 178 178 176 181 . 250 . 260 244 244 244 244 195 330 376 Shots Fired 1870 | 4 58 8 . 16 201 108 46 19 14 . 2 43 46 59 81 . 38 . 167 92 41 44 123 378 239 43 Gun 641 | 4 . . . . . . . . 3 . 2 18 18 29 33 . 34 . . . . . 10 314 136 40 Cannon 1183 | . 58 8 . 16 195 108 42 19 11 . . 24 28 30 48 . 4 . 167 92 41 44 113 34 98 3 Launcher 46 | . . . . . 6 . 4 . . . . 1 . . . . . . . . . . . 30 5 . Special . | . . . . . . . . . . . . . . . . . . . . . . . . . . . Kinetic 1232 | 4 29 4 . 8 133 63 28 13 3 . 2 18 18 29 47 . . . 128 92 40 44 123 327 79 . Thermal 466 | . 29 4 . 8 62 45 14 6 11 . . 24 28 30 34 . 38 . . . 1 . . 21 71 40 Explosive 35 | . . . . . . . . . . . . . . . . . . . . . . . . 30 5 . Electromagnetic 137 | . . . . . 6 . 4 . . . . 1 . . . . . . 39 . . . . . 84 3 Robot Hit Streak 49 | 1 18 1 . 3 15 7 9 7 9 . . 20 15 14 23 . 17 . 28 34 10 13 49 44 25 9 Robot Miss Streak 10 | 1 3 2 . 3 3 2 2 2 1 . . 2 2 4 6 . 10 . 3 1 3 1 1 3 3 1 Penetration Max 2 | . . . . . . . 1 . . . . . . . . . . . . 1 . . 1 2 1 . Secondary Targets 8 | . . . . . . . . . . . . . . . . . . . . . . . . 8 . . Max Gunslinging Chain 1 | . . . . . . . . . . . . . . . . . . . . . . . . 1 . . Shots Hit Robots 1341 | 2 38 2 . 7 122 64 27 15 11 . . 35 39 48 53 . 38 . 114 62 24 41 92 282 185 40 Core Hits 739 | 2 17 3 . 6 62 32 21 3 7 . . 16 32 27 19 . 72 . 44 21 8 17 32 174 106 18 Critical Hits 117 | . 2 . . . 3 4 2 1 . . . . . 2 . . 1 . 10 15 4 5 17 33 17 1 Critical Kills 47 | . 1 . . . 1 2 2 . . . . . . . . . 1 . 4 5 2 1 5 19 3 1 Critical Parts Destroyed 58 | . 1 . . . 2 2 . . . . . . . 2 . . . . 5 6 2 3 10 13 12 . Melee Attacks 52 | . . . . . . . . . . . . . . . . . 4 . . . . 9 . 3 15 21 Impact . | . . . . . . . . . . . . . . . . . . . . . . . . . . . Slashing . | . . . . . . . . . . . . . . . . . . . . . . . . . . . Piercing 52 | . . . . . . . . . . . . . . . . . 4 . . . . 9 . 3 15 21 Sneak Attacks 9 | . . . . . . . . . . . . . . . . . . . . . . 6 . 1 . 2 Combat Hostiles . | . . . . . . . . . . . . . . . . . . . . . . . . . . . Follow-up Attacks . | . . . . . . . . . . . . . . . . . . . . . . . . . . . Damage Inflicted 53761 | 24 748 101 . 119 3710 1859 1241 487 304 . . 943 1119 1208 1476 . 3786 . 5144 2609 693 1715 3507 12169 9100 1699 Guns 14743 | 24 . . . . . . . . 32 . . 291 323 390 440 . 2584 . . . . . 192 6729 2766 972 Cannons 26613 | . 748 101 . 119 3024 1569 739 487 272 . . 574 796 818 1036 . 458 . 4313 2542 693 1052 3044 747 3378 103 Explosions 10441 | . . . . . 584 290 488 . . . . 78 . . . . 711 . 771 . . . 266 4555 2698 . Melee 1677 | . . . . . . . . . . . . . . . . . 33 . . . . 663 . 99 258 624 Ramming 287 | . . . . . 102 . 14 . . . . . . . . . . . 60 67 . . 5 39 . . Kinetic 24688 | 24 321 26 . 26 1797 825 415 324 32 . . 291 323 390 523 . . . 3251 2542 693 1052 3236 6967 1630 . Thermal 15158 | . 427 75 . 93 1368 744 492 163 272 . . 574 796 818 953 . 3753 . 191 . . . . 509 2958 972 Explosive 7085 | . . . . . . 290 . . . . . . . . . . . . 580 . . . . 4555 1660 . Electromagnetic 4866 | . . . . . 443 . 320 . . . . 78 . . . . . . 1062 . . . 266 . 2594 103 Impact . | . . . . . . . . . . . . . . . . . . . . . . . . . . . Slashing . | . . . . . . . . . . . . . . . . . . . . . . . . . . . Piercing 1677 | . . . . . . . . . . . . . . . . . 33 . . . . 663 . 99 258 624 Highest Corruption 39 | . . . . . 1 1 2 7 7 7 7 7 . . 1 1 1 . . 2 2 2 11 8 39 3 Average Corruption 3 | . . . . . 1 1 1 6 7 7 7 7 . . 1 1 1 . . 2 2 1 4 6 10 2 Corruption Purged 2 | . . . . . . . . . . . . . . . . . . . . . . 2 . . . . Effects 230 | . . . . . 9 4 2 3 11 . 5 35 . . 8 1 . . . 1 4 2 4 76 57 8 Message Errors 37 | . . . . . 4 2 1 . 3 . . 9 . . 2 . . . . 1 1 1 1 6 3 3 Matter Fused 30 | . . . . . . . . 1 1 . 1 6 . . . . . . . . . . 1 14 5 1 Heat Flow Errors 23 | . . . . . . . . 2 1 . 1 7 . . . . . . . . . . . 4 7 1 Energy Discharges 22 | . . . . . 3 . . . . . . 4 . . 2 . . . . . 3 . . 3 4 3 Data Loss (minor) 18 | . . . . . . 2 1 . 2 . . 4 . . 1 1 . . . . . 1 . 4 2 . Data Loss (major) 9 | . . . . . . . . . 3 . . 1 . . . . . . . . . . . 5 . . Misfires 9 | . . . . . . . . . . . 2 1 . . . . . . . . . . . 6 . . Misdirections 2 | . . . . . . . . . . . . . . . . . . . . . . . . . 2 . Targeting Errors 69 | . . . . . 1 . . . 1 . 1 3 . . 2 . . . . . . . 2 29 30 . Weapon Failures 11 | . . . . . 1 . . . . . . . . . 1 . . . . . . . . 5 4 . Overload Shots . | . . . . . . . . . . . . . . . . . . . . . . . . . . . Overflow Damage 1387 | . 45 6 . . 73 34 28 . 1 . . 97 16 7 32 . 93 . 111 3 13 164 94 199 303 68 Projectiles 677 | . 45 6 . . 68 34 28 . 1 . . 97 16 7 32 . 55 . 94 . 13 9 86 33 53 . Explosions 484 | . . . . . 5 . . . . . . . . . . . 38 . 17 . . . 8 166 250 . Melee 226 | . . . . . . . . . . . . . . . . . . . . 3 . 155 . . . 68 Knockbacks 107 | . 2 1 . . 17 8 3 . . . . . . . . . . . 30 11 3 1 15 10 6 . Impact 2 | . . . . . . . . . . . . . . . . . . . 1 1 . . . . . . Kinetic 99 | . 2 1 . . 13 7 3 . . . . . . . . . . . 29 10 3 1 15 9 6 . Secondary 6 | . . . . . 4 1 . . . . . . . . . . . . . . . . . 1 . . Self-Inflicted Damage 1036 | . . . . . 37 111 78 . . . . . . . . . 131 . 68 . . . 90 . 438 83 Shots 18 | . . . . . 2 2 3 . . . . . . . . . 2 . 1 . . . 1 . 6 1 Rammed 26 | . . . . 1 9 . 3 . . . . . . . . . . . 3 6 . . 1 3 . . Targets Rammed 26 | . . . . 1 9 . 3 . . . . . . . . . . . 3 6 . . 1 3 . . Kicked . | . . . . . . . . . . . . . . . . . . . . . . . . . . . Crushed . | . . . . . . . . . . . . . . . . . . . . . . . . . . . Highest Temperature 678 | . 303 168 . 210 394 321 168 389 245 . 243 255 240 81 78 . 157 . 477 295 401 107 445 535 678 312 Average Temperature 129 | . 95 86 . 93 93 117 60 146 104 . 122 76 59 29 25 . 42 . 181 92 173 45 192 179 247 92 Received Heat Transfer 4429 | . 156 . . . 525 399 21 . 24 . . 150 36 111 54 . 531 . 303 171 18 18 81 519 1281 31 Effects 33 | . . . . . 2 2 . . . . . . 2 . . . . . 6 . . . 4 4 13 . Shutdowns 3 | . . . . . 1 . . . . . . . . . . . . . 2 . . . . . . . Energy Bleed 7 | . . . . . . 2 . . . . . . . . . . . . 1 . . . 2 . 2 . Interference 3 | . . . . . . . . . . . . . 2 . . . . . . . . . . . 1 . Matter Decay 1 | . . . . . . . . . . . . . . . . . . . . . . . 1 . . . Short Circuit 5 | . . . . . 1 . . . . . . . . . . . . . . . . . . 2 2 . Damage (minor) 6 | . . . . . . . . . . . . . . . . . . . 2 . . . 1 . 3 . Damage (major) 8 | . . . . . . . . . . . . . . . . . . . 1 . . . . 2 5 . Siege Activations 32 | . . . . . . . . . . . . . . . . . . . . 1 1 3 6 16 5 . Total Turns 604 | . . . . . . . . . . . . . . . . . . . . 27 15 26 99 276 161 . Longest Duration 98 | . . . . . . . . . . . . . . . . . . . . 27 15 11 31 44 98 . Robots Corrupted 10 | . . . . . . . . . . . . . . . . . . . 4 . . . . . 6 . Combat Hostiles 8 | . . . . . . . . . . . . . . . . . . . 2 . . . . . 6 . Parts Fried 42 | . . . . . 4 . 2 . . . . . . . . . . . 12 . . . 2 . 22 . Impact Corruptions 1 | . . . . . . . . . . . . . . . . . . . . 1 . . . . . . Robots Melted 4 | . . . . . . . . . . . . . . . . . 2 . . . . . . . 1 1 Combat Hostiles 3 | . . . . . . . . . . . . . . . . . 2 . . . . . . . 1 . Parts Melted 25 | . 3 1 . 1 . . . . . . . 1 1 3 . . 7 . . . . . . 1 5 2 Heat Transferred 19908 | . 888 148 . 185 2026 1221 507 222 370 . . 703 1066 1094 1361 . 4815 . 150 . . . . 666 3339 1147 Parts Sabotaged 3 | . . . . . . . . . . . . . . . . . . . . . . . . . 3 . Parts Stolen . | . . . . . . . . . . . . . . . . . . . . . . . . . . . Parts Stripped . | . . . . . . . . . . . . . . . . . . . . . . . . . . . Power Chain Reactions 5 | . . . . . 2 . 1 . . . . . . . . . . . 1 . . . . . 1 . Missiles Intercepted . | . . . . . . . . . . . . . . . . . . . . . . . . . . . Alert | -11 -10 -10 -10 -9 -8 -8 -7 -7 -7 -7 -7 -6 -6 -6 -6 -6 -5 -5 -4 -4 -4 -4 -4 -3 -2 -1 ------- Run | Scr Mat Min Exi Min Mat Sto Fac Was Fac Low Dat Pro Fac Low Low Zio Pro Fac Fac Ext Cet Arc Hub Res Res Acc Peak Influence 1849 | 5 345 159 . 170 704 715 460 85 142 . . . 151 . . . . . 697 1047 1037 552 948 1770 1799 1849 Initial 1100 | . 3 89 . . 66 297 278 85 35 . . . . . . . . . . 340 585 414 . 476 960 1100 Average 460 | 1 173 153 . 127 271 408 284 66 67 . . . 58 . . . . . 202 425 878 232 140 1063 1431 1291 Maximum Alert Level 5 | . 1 . . . 3 3 2 . . . . . . . . . . . 2 3 3 2 3 5 5 5 Low Security (%) 39 | 100 74 100 . 100 46 8 7 100 100 . . . 100 . . . . 100 66 20 . 42 66 . . . Level 1 23 | . 25 . . . 26 55 86 . . . . . . . . . . . 8 22 . 38 31 . . . Level 2 15 | . . . . . 24 34 5 . . . . . . . . . . . 24 44 17 19 . 27 . . Level 3 7 | . . . . . 2 2 . . . . . . . . . . . . . 12 82 . 2 27 20 . Level 4 10 | . . . . . . . . . . . . . . . . . . . . . . . . 34 34 93 Level 5 3 | . . . . . . . . . . . . . . . . . . . . . . . . 10 29 6 High Security 1 | . . . . . . . . . . . . . . . . . . . . . . . . . 15 . Max Security . | . . . . . . . . . . . . . . . . . . . . . . . . . . . Squads Dispatched 67 | . 2 . . . 4 2 4 . 3 . . . 3 . . . . . 4 3 1 . 3 18 14 6 Investigation 18 | . 2 . . . 1 1 . . 3 . . . 1 . . . . . 1 1 1 . . 4 1 2 Extermination 13 | . . . . . . . 3 . . . . . . . . . . . 2 . . . 1 5 1 1 Reinforcement 16 | . . . . . 1 1 1 . . . . . 2 . . . . . 1 1 . . 2 3 2 2 Assault 19 | . . . . . 2 . . . . . . . . . . . . . . 1 . . . 6 9 1 Garrison 1 | . . . . . . . . . . . . . . . . . . . . . . . . . 1 . Intercept . | . . . . . . . . . . . . . . . . . . . . . . . . . . . Construction Impeded 3 | . . . . . 1 . 1 . . . . . . . . . . . . . . . . 1 . . Haulers Reinforced 5 | . . . . . . . . . . . . . 1 . . . . . 1 . . . 1 1 1 . Stealth | -11 -10 -10 -10 -9 -8 -8 -7 -7 -7 -7 -7 -6 -6 -6 -6 -6 -5 -5 -4 -4 -4 -4 -4 -3 -2 -1 --------- Run | Scr Mat Min Exi Min Mat Sto Fac Was Fac Low Dat Pro Fac Low Low Zio Pro Fac Fac Ext Cet Arc Hub Res Res Acc Distress Signals 21 | . 1 . . . 4 2 2 . . . . . 2 . . . . . 2 1 1 . 1 2 2 1 Communications Jammed 130 | . . . . . 37 . . . . . . . . . . . . . . . . . . 12 81 . Distress Signals 129 | . . . . . 37 . . . . . . . . . . . . . . . . . . 12 80 . Times Spotted 486 | . 21 3 . 5 45 22 18 6 3 . . 7 12 7 8 . 35 . 30 39 6 9 21 64 80 45 Peak Tracking Total 20 | . 4 3 . 3 7 6 6 6 2 . . 3 5 3 3 . 11 . 6 5 5 1 5 7 20 18 Tactical Retreats 28 | . 6 . . . . . . . . . . . . . 1 . 4 . 2 2 . . 1 . 6 6 Traps | -11 -10 -10 -10 -9 -8 -8 -7 -7 -7 -7 -7 -6 -6 -6 -6 -6 -5 -5 -4 -4 -4 -4 -4 -3 -2 -1 ------- Run | Scr Mat Min Exi Min Mat Sto Fac Was Fac Low Dat Pro Fac Low Low Zio Pro Fac Fac Ext Cet Arc Hub Res Res Acc Traps Triggered 11 | . . . . . 2 . 3 . . . . . . . . . . . 1 2 . . . 1 1 1 Indirectly 2 | . . . . . . . 2 . . . . . . . . . . . . . . . . . . . Trap Hack Attempts . | . . . . . . . . . . . . . . . . . . . . . . . . . . . Triggered . | . . . . . . . . . . . . . . . . . . . . . . . . . . . Disarmed . | . . . . . . . . . . . . . . . . . . . . . . . . . . . Reprogrammed . | . . . . . . . . . . . . . . . . . . . . . . . . . . . Reused . | . . . . . . . . . . . . . . . . . . . . . . . . . . . Traps Extracted . | . . . . . . . . . . . . . . . . . . . . . . . . . . . Installed . | . . . . . . . . . . . . . . . . . . . . . . . . . . . Triggered . | . . . . . . . . . . . . . . . . . . . . . . . . . . . Machines | -11 -10 -10 -10 -9 -8 -8 -7 -7 -7 -7 -7 -6 -6 -6 -6 -6 -5 -5 -4 -4 -4 -4 -4 -3 -2 -1 ---------- Run | Scr Mat Min Exi Min Mat Sto Fac Was Fac Low Dat Pro Fac Low Low Zio Pro Fac Fac Ext Cet Arc Hub Res Res Acc Machines Disabled 63 | . . . . 1 . 4 1 . . . . . . . 2 . 1 . 13 . 5 2 24 6 3 1 Max in Single Turn 21 | . . . . 1 . 2 1 . . . . . . . 1 . 1 . 8 . 2 1 21 4 2 1 Garrison Access 4 | . . . . . . . . . . . . . 1 . . . . . . . . . 1 1 1 . Network Hub 2 | . . . . . . . . . . . . . . . . . . . . . . . 2 . . . Energy Cycler 1 | . . . . . . . . . . . . . . . . . . . . . . . . . . 1 Machines Sabotaged . | . . . . . . . . . . . . . . . . . . . . . . . . . . . Garrisons Compromised . | . . . . . . . . . . . . . . . . . . . . . . . . . . . Overloaded Fab Kills . | . . . . . . . . . . . . . . . . . . . . . . . . . . . Fab Network Shutdowns . | . . . . . . . . . . . . . . . . . . . . . . . . . . . Hacking | -11 -10 -10 -10 -9 -8 -8 -7 -7 -7 -7 -7 -6 -6 -6 -6 -6 -5 -5 -4 -4 -4 -4 -4 -3 -2 -1 --------- Run | Scr Mat Min Exi Min Mat Sto Fac Was Fac Low Dat Pro Fac Low Low Zio Pro Fac Fac Ext Cet Arc Hub Res Res Acc Machines Accessed 92 | . 11 . 2 . 11 9 7 . 5 . 4 . 2 . 1 . 1 1 4 9 1 1 4 7 3 9 Terminals 53 | . 8 . . . 8 7 3 . 1 . . . 1 . . . 1 . 1 9 1 . 3 3 1 6 Fabricators 3 | . . . . . . . . . 1 . . . . . . . . . 1 . . . . 1 . . Repair Stations 6 | . 1 . . . 1 1 . . . . . . . . . . . . 1 . . . . 2 . . Recycling Units 7 | . 2 . . . . 1 1 . 2 . . . . . . . . . . . . . . . . 1 Scanalyzers 8 | . . . . . 2 . 2 . 1 . . . . . . . . 1 1 . . . . . 1 . Garrison Access 7 | . . . . . . . 1 . . . . . 1 . . . . . . . . . 1 1 1 2 Total Hacks 325 | . 34 . 2 . 31 20 25 . 16 . 27 . 4 . 1 . 3 1 18 28 2 8 7 42 13 43 Successful 176 | . 21 . 2 . 16 10 13 . 10 . 27 . 3 . 1 . 3 . 12 10 . 8 3 16 6 15 Failed 149 | . 13 . . . 15 10 12 . 6 . . . 1 . . . . 1 6 18 2 . 4 26 7 28 Catastrophic 34 | . 1 . . . 1 2 4 . . . . . . . . . . . 1 6 1 . 1 6 2 9 Database Lockouts . | . . . . . . . . . . . . . . . . . . . . . . . . . . . Manual 73 | . 9 . 1 . 6 7 7 . 4 . . . . . . . . . . 6 . . 3 7 8 15 Terminals 169 | . 27 . . . 21 16 6 . 4 . . . 3 . . . 3 . 2 28 2 . 6 11 7 33 Fabricators 16 | . . . . . . . . . 6 . . . . . . . . . 5 . . . . 5 . . Repair Stations 32 | . 3 . . . 3 2 . . . . . . . . . . . . 1 . . . . 23 . . Recycling Units 15 | . 4 . . . . 2 2 . 5 . . . . . . . . . . . . . . . . 2 Scanalyzers 35 | . . . . . 7 . 13 . 1 . . . . . . . . 1 10 . . . . . 3 . Garrison Access 20 | . . . . . . . 4 . . . . . 1 . . . . . . . . . 1 3 3 8 Terminal Hacks 92 | . 14 . 2 . 8 4 1 . 2 . 27 . 2 . 1 . 3 . . 10 . 8 . 2 2 6 Record 24 | . . . 1 . . . . . . . 11 . . . 1 . 3 . . . . 8 . . . . Part Schematic 7 | . . . . . . . . . . . 5 . . . . . . . . 2 . . . . . . Robot Schematic 9 | . 1 . . . . . . . . . 8 . . . . . . . . . . . . . . . Robot Analysis 3 | . 2 . . . 1 . . . . . . . . . . . . . . . . . . . . . Prototype ID Bank 13 | . 6 . . . 3 . . . 1 . 3 . . . . . . . . . . . . . . . Open Door 3 | . . . . . . 2 . . . . . . . . . . . . . 1 . . . . . . Level Access Points 1 | . . . . . . . . . . . . . . . . . . . . . . . . . . 1 Branch Access Points 4 | . 1 . . . 1 . . . 1 . . . . . . . . . . . . . . 1 . . Terminal Index 4 | . . . . . 1 . . . . . . . . . . . . . . . . . . 1 1 1 Garrison Index 1 | . . . . . . . . . . . . . . . . . . . . . . . . . . 1 Alert Level 3 | . . . . . 1 . . . . . . . . . . . . . . 2 . . . . . . Unreport Threat 2 | . . . . . . . . . . . . . . . . . . . . 2 . . . . . . Locate Traps 11 | . 2 . . . 1 1 1 . . . . . 1 . . . . . . 3 . . . . 1 1 Hauler Manifests 1 | . 1 . . . . . . . . . . . . . . . . . . . . . . . . . Zone Layout 5 | . 1 . . . . 1 . . . . . . 1 . . . . . . . . . . . . 2 EX-Prototype ID Bank 1 | . . . 1 . . . . . . . . . . . . . . . . . . . . . . . Fabricator Hacks 9 | . . . . . . . . . 4 . . . . . . . . . 3 . . . . 2 . . Load Schematic 2 | . . . . . . . . . 1 . . . . . . . . . 1 . . . . . . . Build 7 | . . . . . . . . . 3 . . . . . . . . . 2 . . . . 2 . . Repair Station Hacks 14 | . 2 . . . 2 2 . . . . . . . . . . . . . . . . . 8 . . Scan Component 8 | . 1 . . . 1 1 . . . . . . . . . . . . . . . . . 5 . . Repair 6 | . 1 . . . 1 1 . . . . . . . . . . . . . . . . . 3 . . Recycling Unit Hacks 6 | . 2 . . . . 1 . . 1 . . . . . . . . . . . . . . . . 2 Report Inventory 3 | . 1 . . . . 1 . . . . . . . . . . . . . . . . . . . 1 Retrieve Components 3 | . 1 . . . . . . . 1 . . . . . . . . . . . . . . . . 1 Scanalyzer 27 | . . . . . 6 . 11 . . . . . . . . . . . 9 . . . . . 1 . Insert Component 11 | . . . . . 3 . 5 . . . . . . . . . . . 2 . . . . . 1 . Analyze 16 | . . . . . 3 . 6 . . . . . . . . . . . 7 . . . . . . . Garrison Access Hacks 4 | . . . . . . . 1 . . . . . 1 . . . . . . . . . 1 1 . . Unlock Access 1 | . . . . . . . 1 . . . . . . . . . . . . . . . . . . . Seal Access 3 | . . . . . . . . . . . . . 1 . . . . . . . . . 1 1 . . Unauthorized Hacks 24 | . 3 . . . . 3 . . 3 . . . . . . . . . . . . . 2 3 3 7 Terminals 13 | . 1 . . . . 2 . . . . . . . . . . . . . . . . 2 1 3 4 Track 2 | . . . . . . . . . . . . . . . . . . . . . . . 1 . 1 . Assimilate 2 | . . . . . . . . . . . . . . . . . . . . . . . . . . 2 Botnet 6 | . 1 . . . . 1 . . . . . . . . . . . . . . . . 1 1 1 1 Operators 3 | . . . . . . 1 . . . . . . . . . . . . . . . . . . 1 1 Fabricators 4 | . . . . . . . . . 2 . . . . . . . . . . . . . . 2 . . Prioritize 2 | . . . . . . . . . 1 . . . . . . . . . . . . . . 1 . . Siphon 1 | . . . . . . . . . 1 . . . . . . . . . . . . . . . . . Download 1 | . . . . . . . . . . . . . . . . . . . . . . . . 1 . . Repair Stations . | . . . . . . . . . . . . . . . . . . . . . . . . . . . Recycling Units 4 | . 2 . . . . 1 . . 1 . . . . . . . . . . . . . . . . . Tunnel 4 | . 2 . . . . 1 . . 1 . . . . . . . . . . . . . . . . . Scanalyzers . | . . . . . . . . . . . . . . . . . . . . . . . . . . . Garrison Access 3 | . . . . . . . . . . . . . . . . . . . . . . . . . . 3 Reprogram 1 | . . . . . . . . . . . . . . . . . . . . . . . . . . 1 Intercept 1 | . . . . . . . . . . . . . . . . . . . . . . . . . . 1 Watchers 1 | . . . . . . . . . . . . . . . . . . . . . . . . . . 1 Data Cores Recovered . | . . . . . . . . . . . . . . . . . . . . . . . . . . . Used . | . . . . . . . . . . . . . . . . . . . . . . . . . . . Hacking Detections 73 | . 8 . . . 10 7 7 . 5 . . . 1 . . . . 1 4 9 1 . 3 5 3 9 Full Trace Events 12 | . . . . . 2 1 . . 2 . . . . . . . . . 1 1 1 . . 2 1 1 Feedback Events 1 | . . . . . . . . . . . . . . . . . . . . . . . . 1 . . Corruption 1 | . . . . . . . . . . . . . . . . . . . . . . . . 1 . . Feedback Blocked . | . . . . . . . . . . . . . . . . . . . . . . . . . . . Robot Schematics Acquired 9 | . 1 . . . . . . . . . 8 . . . . . . . . . . . . . . . Robots Built . | . . . . . . . . . . . . . . . . . . . . . . . . . . . Matter . | . . . . . . . . . . . . . . . . . . . . . . . . . . . Time . | . . . . . . . . . . . . . . . . . . . . . . . . . . . Total Robot Build Rating . | . . . . . . . . . . . . . . . . . . . . . . . . . . . Part Schematics Acquired 17 | . . . . . 3 . 4 . . . 5 . . . . . . . 2 2 . . . 1 . . Parts Built 14 | . . . . . . . . . 6 . . . . . . . . . 4 . . . . 4 . . Matter 1175 | . . . . . . . . . 327 . . . . . . . . . 292 . . . . 556 . . Time 425 | . . . . . . . . . 145 . . . . . . . . . 72 . . . . 208 . . Total Part Build Rating 66 | . . . . . . . . . 18 . . . . . . . . . 12 . . . . 36 . . Parts Repaired 6 | . 1 . . . 1 1 . . . . . . . . . . . . . . . . . 3 . . Time 217 | . 26 . . . 32 38 . . . . . . . . . . . . . . . . . 121 . . Parts Recycled . | . . . . . . . . . . . . . . . . . . . . . . . . . . . Recycled Matter . | . . . . . . . . . . . . . . . . . . . . . . . . . . . Retrieved Matter . | . . . . . . . . . . . . . . . . . . . . . . . . . . . Retrieved Components 6 | . 3 . . . . . . . 2 . . . . . . . . . . . . . . . . 1 Parts Scanalyzed 10 | . . . . . 3 . 4 . . . . . . . . . . . 2 . . . . . 1 . Part Schematics Acquired 9 | . . . . . 3 . 4 . . . . . . . . . . . 2 . . . . . . . Parts Damaged 1 | . . . . . 1 . . . . . . . . . . . . . . . . . . . . . Bothacking | -11 -10 -10 -10 -9 -8 -8 -7 -7 -7 -7 -7 -6 -6 -6 -6 -6 -5 -5 -4 -4 -4 -4 -4 -3 -2 -1 ------------ Run | Scr Mat Min Exi Min Mat Sto Fac Was Fac Low Dat Pro Fac Low Low Zio Pro Fac Fac Ext Cet Arc Hub Res Res Acc Used RIF Installer . | . . . . . . . . . . . . . . . . . . . . . . . . . . . Robots Hacked . | . . . . . . . . . . . . . . . . . . . . . . . . . . . Non-combat . | . . . . . . . . . . . . . . . . . . . . . . . . . . . Combat . | . . . . . . . . . . . . . . . . . . . . . . . . . . . Robot Hacks Applied . | . . . . . . . . . . . . . . . . . . . . . . . . . . . Relay Couplers Released 2 | . . . . . . . . . . . . . . . . . . . . . . . . . 2 . Machine Destruction 2 | . . . . . . . . . . . . . . . . . . . . . . . . . 2 . Robots Rewired 20 | . . . . . . . . . . . . . . . 4 . . . . 16 . . . . . . Allies Hacked 1 | . . . . . . . . . . . . . . . . . . . . 1 . . . . . . Hacks Repelled . | . . . . . . . . . . . . . . . . . . . . . . . . . . . Allies | -11 -10 -10 -10 -9 -8 -8 -7 -7 -7 -7 -7 -6 -6 -6 -6 -6 -5 -5 -4 -4 -4 -4 -4 -3 -2 -1 -------- Run | Scr Mat Min Exi Min Mat Sto Fac Was Fac Low Dat Pro Fac Low Low Zio Pro Fac Fac Ext Cet Arc Hub Res Res Acc Total Allies 45 | . . . . 1 . 10 . . . . . 1 . . 4 2 . . . 25 . . . . . 2 Largest Group 16 | . . . . 1 1 10 6 . . . . 1 1 . 4 6 5 . . 16 9 3 . . . 2 Highest-Rated Group 811 | . . . . 31 31 173 106 . . . . 94 94 . 118 168 143 . . 811 480 229 . . . 70 Highest-Rated Ally 156 | . . . . 31 31 29 29 . . . . 94 94 . 31 31 31 . . 156 136 136 . . . 44 Total Orders 3 | . . . . . . . . . . . . . . . . . . 1 2 . . . . . . . RETURN 3 | . . . . . . . . . . . . . . . . . . 1 2 . . . . . . . Ally Attacks 410 | . . . . . 3 31 37 . . . . 12 23 . . . 25 . . 174 98 7 . . . . Total Damage 9518 | . . . . . 21 373 483 . . . . 548 744 . . . 582 . . 4945 1699 123 . . . . Kills 67 | . . . . . 1 5 4 . . . . 4 5 . . . 5 . . 34 9 . . . . . Allies Corrupted 3 | . . . . . . . . . . . . . . . . . . . . 2 . . . . . 1 Allies Melted . | . . . . . . . . . . . . . . . . . . . . . . . . . . . Intel | -11 -10 -10 -10 -9 -8 -8 -7 -7 -7 -7 -7 -6 -6 -6 -6 -6 -5 -5 -4 -4 -4 -4 -4 -3 -2 -1 ------- Run | Scr Mat Min Exi Min Mat Sto Fac Was Fac Low Dat Pro Fac Low Low Zio Pro Fac Fac Ext Cet Arc Hub Res Res Acc Robot Analysis Total 3 | . 2 . . . 1 . . . . . . . . . . . . . . . . . . . . . Derelict Logs Recovered 7 | . . . . 1 . . . . . . . 1 . . 1 2 2 . . . . . . . . . Drone Launches 4 | . . . . . . . . . . . . . . . . . . 2 2 . . . . . . . Drone Recoveries 4 | . . . . . . . . . . . . . . . . . . 2 2 . . . . . . . Exploration | -11 -10 -10 -10 -9 -8 -8 -7 -7 -7 -7 -7 -6 -6 -6 -6 -6 -5 -5 -4 -4 -4 -4 -4 -3 -2 -1 ------------- Run | Scr Mat Min Exi Min Mat Sto Fac Was Fac Low Dat Pro Fac Low Low Zio Pro Fac Fac Ext Cet Arc Hub Res Res Acc Turns Passed 22798 | 112 1130 206 632 301 1382 937 1388 80 435 23 135 1045 580 509 706 1339 1831 362 1468 1111 235 2095 997 2005 1079 675 Spaces Moved 11244 | 60 610 122 356 152 554 300 744 86 309 14 80 542 303 275 349 821 896 157 623 521 106 265 468 809 392 1330 Core 256 | 5 . . . . . . . 74 8 . . . . . . . 44 . . . . 86 . . 26 13 Treads 8694 | 55 610 122 356 152 554 300 744 12 96 14 80 542 303 275 349 821 119 157 620 521 106 179 468 809 330 . Legs 679 | . . . . . . . . . . . . . . . . . 674 . 3 . . . . . 2 . Wheels . | . . . . . . . . . . . . . . . . . . . . . . . . . . . Hover 270 | . . . . . . . . . 177 . . . . . . . 59 . . . . . . . 34 . Flight 1345 | . . . . . . . . . 28 . . . . . . . . . . . . . . . . 1317 Fastest Speed 31 | 50 160 160 160 180 160 172 156 50 40 170 170 170 163 163 161 161 100 210 149 145 160 160 160 145 50 31 Average Speed 159 | 150 160 160 175 180 179 179 169 67 92 170 170 170 164 163 161 161 177 210 173 150 160 676 160 161 136 31 Slowest Speed 1750 | 160 160 160 180 180 180 240 177 177 170 170 170 170 165 163 163 161 240 210 240 165 160 1750 180 180 550 50 Overloaded Moves . | . . . . . . . . . . . . . . . . . . . . . . . . . . . Propulsion Burnouts . | . . . . . . . . . . . . . . . . . . . . . . . . . . . Robots Hopped 10 | . . . . . . . . . . . . . . . . . . . . . . . . . . 10 Cave-ins Triggered . | . . . . . . . . . . . . . . . . . . . . . . . . . . . Exploration Rate (%) 47 | 4 96 30 70 36 64 57 21 88 10 6 71 82 12 48 49 85 86 6 18 76 58 81 43 22 15 38 Regions Visited 26 Branch Regions 15 Pre-discovered Areas 10 | . 2 . 1 1 . 1 . . 1 . 1 . . . . 3 . . . . . . . . . . Known Exits Taken 6 | . 1 . . . 1 . . . 1 . . . 1 . . . 1 1 . . . . . . . . Unknown Exits Taken 18 | 1 . 1 1 1 . 1 . . . 1 1 1 . 1 1 1 . . 1 1 1 1 1 1 1 . Scrap Searched 10 | . . 1 . . . . . . . . . 2 . . . 4 3 . . . . . . . . . Spaces Dug 10 | . . . . . . . . . . . . . . . . . . . . . . . . 2 . 8 Terrain Destroyed 797 | . . . . 3 22 25 5 . . . . 4 2 5 14 . 60 . 104 28 3 15 197 158 122 30 Melee 10 | . . . . . . . . . . . . . . . . . . . . . . . . 2 . 8 Projectile 205 | . . . . 3 16 14 2 . . . . 4 2 5 14 . . . 39 28 3 15 27 14 19 . AOE 582 | . . . . . 6 11 3 . . . . . . . . . 60 . 65 . . . 170 142 103 22 Terrain Rammed . | . . . . . . . . . . . . . . . . . . . . . . . . . . . Walls Destroyed . | . . . . . . . . . . . . . . . . . . . . . . . . . . . Machines Disabled . | . . . . . . . . . . . . . . . . . . . . . . . . . . . Actions | -11 -10 -10 -10 -9 -8 -8 -7 -7 -7 -7 -7 -6 -6 -6 -6 -6 -5 -5 -4 -4 -4 -4 -4 -3 -2 -1 --------- Run | Scr Mat Min Exi Min Mat Sto Fac Was Fac Low Dat Pro Fac Low Low Zio Pro Fac Fac Ext Cet Arc Hub Res Res Acc Total 14473 | 74 715 125 366 163 783 611 840 92 440 13 79 631 357 298 435 841 1009 190 886 792 146 523 637 1230 680 1517 Wait 1408 | 2 42 . 3 3 76 248 33 . 90 . . 51 18 8 3 5 21 23 100 55 16 225 117 146 56 67 Move 11202 | 59 609 121 355 151 554 299 744 85 308 13 79 541 302 274 348 820 895 156 622 520 105 264 467 808 391 1312 Hop 7 | . . . . . . . . . . . . . . . . . . . . . . . . . . 7 Pick Up 205 | 4 14 . 2 . 26 9 10 . 3 . . 5 1 . 2 1 7 2 24 5 3 . 6 41 19 21 Fast Attach 187 | 7 1 . . . 3 3 2 . 17 . . 2 7 1 2 5 21 4 15 8 3 5 1 21 31 28 Attach 105 | . . . . . 8 5 2 . 3 . . 2 1 . 2 . 6 . 7 2 1 1 5 22 29 9 Detach 19 | . . . . . . . . . . . . 1 2 . . 1 5 . . . 1 1 . 7 1 . Swap 97 | . 6 . 3 . 9 1 13 . . . . 2 2 . . . 2 . 15 6 . 2 2 15 9 10 Drop 227 | . 14 . 3 . 22 1 15 . 7 . . 5 7 . 1 9 10 5 29 18 6 5 5 29 9 27 Fire 743 | 2 29 4 . 8 77 45 18 7 12 . . 22 17 15 30 . 38 . 71 23 11 11 33 135 120 15 Melee 52 | . . . . . . . . . . . . . . . . . 4 . . . . 9 . 3 15 21 Ram . | . . . . . . . . . . . . . . . . . . . . . . . . . . . Kick . | . . . . . . . . . . . . . . . . . . . . . . . . . . . Crush 25 | . . . . 1 8 . 3 . . . . . . . . . . . 3 6 . . 1 3 . . Escape Stasis . | . . . . . . . . . . . . . . . . . . . . . . . . . . . Rewire 196 | . . . . . . . . . . . . . . . 47 . . . . 149 . . . . . . Trap . | . . . . . . . . . . . . . . . . . . . . . . . . . . . Miscellaneous . | . . . . . . . . . . . . . . . . . . . . . . . . . . . Route ------- -11/Scrapyard -10/Materials (discovered 4 exits: [*Mat x3] / *Min) -10/Mines -10/Exiles -9/Mines -8/Materials (discovered 2 exits: *Fac / *Sto) -8/Storage -7/Factory -7/Waste -7/Factory (discovered 2 exits: *Low x2) -7/Lower Caves -7/Data Miner -6/Proximity Caves -6/Factory (discovered 2 exits: *Fac / *Low) -6/Lower Caves -6/Lower Caves (discovered 2 exits: Fac / [*Zio]) -6/Zion -5/Proximity Caves -5/Factory (discovered 4 exits: *Fac x2 / Upp x2) -4/Factory -4/Extension (discovered 3 exits: *Res x2 / *Cet) -4/Cetus -4/Archives (discovered 3 exits: *Res / *Hub x2) -4/Hub_04(d) -3/Research (discovered 4 exits: *Res / Arm / Tes x2) -2/Research -1/Access To Epsilon Eridani History --------- Turn | Location | Event 7 | -11/Scrapyard | Discovered new exit (range 13) 113 | -11/Scrapyard | Entered Materials 312 | -10/Materials | Build established: Mutant 498 | -10/Materials | Discovered new exit (range 7) 558 | -10/Materials | Repaired Beam Cannon 567 | -10/Materials | Discovered new exit (range 16) 731 | -10/Materials | Discovered new exit (range 4) 933 | -10/Materials | Discovered new exit (range 6) 980 | -10/Materials | Identified exit to Mines 1243 | -10/Materials | Entered Mines 1443 | -10/Mines | Deemed a non-threat by the Exiles lab entrance 1443 | -10/Mines | Discovered new exit (range 5) 1449 | -10/Mines | Entered Exiles 1487 | -10/Exiles | Met 8R-AWN 1518 | -10/Exiles | Met EX-HEX 1620 | -10/Exiles | Met EX-DEC 1658 | -10/Exiles | Learned location of Zion (-6) 1807 | -10/Exiles | Met EX-BIN 1828 | -10/Exiles | Aligned with FarCom system 1830 | -10/Exiles | Given EX-Vault access code 1875 | -10/Exiles | Opened EX-Vault 1886 | -10/Exiles | Found YOLO Cannon 1927 | -10/Exiles | Warned to stay clear of 0b10 Research branches 2056 | -10/Exiles | Discovered new exit (range 14) 2081 | -10/Exiles | Left Exiles lab with YOLO Cannon 2081 | -10/Exiles | Entered Mines 2263 | -9/Mines | Discovered new exit (range 9) 2266 | -9/Mines | Received a Mining Laser from a helpful Derelict 2382 | -9/Mines | Entered Materials 2382 | -8/Materials | Accompanied by 1 ally 2382 | -8/Materials | Evolved 4 slots: Propulsion x1, Utility x2, Weapon x1 2436 | -8/Materials | Repaired Imp. Light Cannon 2745 | -8/Materials | Build established: Skirmisher 2970 | -8/Materials | Discovered new exit (range 15) 3344 | -8/Materials | Identified exit to Storage 3582 | -8/Materials | First assault squad dispatched 3737 | -8/Materials | Lost 3 parts (2u1w) 3751 | -8/Materials | Destroyed 10 combat bots 3764 | -8/Materials | Entered Storage 3965 | -8/Storage | Repaired Assault Cannon 3986 | -8/Storage | Build established: Mutant 4346 | -8/Storage | Lost 6 parts (1p2n1u2w) 4428 | -8/Storage | Assisted by bots powering up and referring to "LRC-V3" 4637 | -8/Storage | Discovered new exit (range 16) 4701 | -8/Storage | Entered Factory 4701 | -7/Factory | Accompanied by 6 allies 4701 | -7/Factory | Evolved 2 slots: Propulsion x1, Utility x1 4742 | -7/Factory | Build established: Commander-Skirmisher 5317 | -7/Factory | Build established: Skirmisher 5979 | -7/Factory | Identified exit to Garrison 6089 | -7/Factory | Sucked down chute 6089 | -7/Factory | Entered Waste 6104 | -7/Waste | EMP discharged 6105 | -7/Waste | Spotted C-40 Crusher 6125 | -7/Waste | Crushed by Compactor (1 part destroyed, 2 dropped) 6128 | -7/Waste | Crushed by Compactor (1 part destroyed, 2 dropped) 6129 | -7/Waste | Crushed by Compactor (1 part destroyed, 2 dropped) 6130 | -7/Waste | Spotted C-40 Crusher 6131 | -7/Waste | Crushed by Compactor (1 part destroyed, 2 dropped) 6132 | -7/Waste | Crushed by Compactor (1 part destroyed) 6136 | -7/Waste | Spotted C-40 Crusher 6146 | -7/Waste | Spotted C-40 Crusher 6147 | -7/Waste | Spotted C-40 Crusher 6147 | -7/Waste | Spotted C-40 Crusher 6161 | -7/Waste | Discovered new exit (range 15) 6163 | -7/Waste | Lost 5 parts (1n2u2w) 6169 | -7/Waste | Entered Factory 6356 | -7/Factory | Identified exit to Lower Caves 6385 | -7/Factory | Fabricated Arm. Treads (x2) 6418 | -7/Factory | Build established: Mutant 6429 | -7/Factory | Fabricated Arm. Treads? 6529 | -7/Factory | Fabricated Arm. Treads? 6604 | -7/Factory | Entered Lower Caves 6605 | -7/Lower Caves | A Derelict revealed a hidden shortcut to meet someone special 6627 | -7/Lower Caves | Entered Data Miner 6627 | -7/Data Miner | Discovered new exit (range 6) 6656 | -7/Data Miner | Met Data Miner 6699 | -7/Data Miner | Learned location of Section 7 (-2) 6699 | -7/Data Miner | Acquired the access code to Warlord's prototype stash 6723 | -7/Data Miner | Received God Mode back door access code from Data Miner 6762 | -7/Data Miner | Entered Proximity Caves 6768 | -6/Proximity Caves | Attracted the attention of an 0b10 checkpoint 6792 | -6/Proximity Caves | Build established: Machinist-Mutant 6933 | -6/Proximity Caves | Spotted B-75 Beast 6935 | -6/Proximity Caves | Escorted by Enhanced Grunt 6940 | -6/Proximity Caves | Destroyed B-75 Beast 7238 | -6/Proximity Caves | Build established: Machinist-Gunner 7714 | -6/Proximity Caves | Discovered new exit (range 8) 7807 | -6/Proximity Caves | Entered Factory 7807 | -6/Factory | Accompanied by 1 ally 7807 | -6/Factory | Evolved 2 slots: Propulsion x1, Weapon x1 7808 | -6/Factory | Identified exit to Lower Caves 8036 | -6/Factory | Build established: Machinist-Mutant 8164 | -6/Factory | Discovered new exit (range 15) 8387 | -6/Factory | Entered Lower Caves 8640 | -6/Lower Caves | Spotted B-75 Beast 8676 | -6/Lower Caves | Destroyed B-75 Beast 8691 | -6/Lower Caves | Build established: Gunner 8871 | -6/Lower Caves | Discovered new exit (range 13) 8896 | -6/Lower Caves | Entered another Lower Caves area 8901 | -6/Lower Caves | Spotted B-75 Beast 8914 | -6/Lower Caves | Destroyed B-75 Beast 9228 | -6/Lower Caves | Build established: Scavenger-Gunner 9231 | -6/Lower Caves | Attracted the attention of an 0b10 checkpoint 9314 | -6/Lower Caves | Identified exit to Factory 9487 | -6/Lower Caves | Discovered new exit (range 11) 9518 | -6/Lower Caves | Attacked by a delusional Derelict stockpiling Unaware 9602 | -6/Lower Caves | Entered Zion 9602 | -6/Zion | Accompanied by 4 allies 9640 | -6/Zion | Given the Hacking Drone Bay 9640 | -6/Zion | Found Prototype Device 9640 | -6/Zion | Identified Hacking Drone Bay 9686 | -6/Zion | Given A8's code to call for help 9707 | -6/Zion | Discovered new exit (range 10) 9728 | -6/Zion | Found CR-A16's Pointy Stick 9776 | -6/Zion | System corruption cleaned by Quarantine Array 9821 | -6/Zion | Learned Factory emergency access door positions 9890 | -6/Zion | Learned location of Warlord (-4) 9989 | -6/Zion | Found Prototype Energy Gun 9989 | -6/Zion | Identified Storm Laser 10050 | -6/Zion | Gained Derelict followers 10248 | -6/Zion | Found Prototype Device 10248 | -6/Zion | Identified Bomb Factory No. 2 10288 | -6/Zion | Build established: Commander-Gunner 10470 | -6/Zion | Rebuked by Imprinter 10568 | -6/Zion | Learned 4 Factory zone layouts 10607 | -6/Zion | Found Prototype Device 10607 | -6/Zion | Identified Phasing AFG 10941 | -6/Zion | Entered Proximity Caves 10941 | -5/Proximity Caves | Accompanied by 6 allies 10943 | -5/Proximity Caves | Attracted the attention of an 0b10 checkpoint 11051 | -5/Proximity Caves | Attracted the attention of an 0b10 base 11143 | -5/Proximity Caves | Destroyed 8 combat bots 11148 | -5/Proximity Caves | Lost 5 parts (1p4n) 11156 | -5/Proximity Caves | Learned Armory security intel 11156 | -5/Proximity Caves | Learned Research terminal intel 11253 | -5/Proximity Caves | Learned Factory garrison access intel 11337 | -5/Proximity Caves | Learned Factory terminal intel 11417 | -5/Proximity Caves | Build established: Scavenger-Gunner 12088 | -5/Proximity Caves | Lost 4 parts (2n1u1w) 12568 | -5/Proximity Caves | Build established: Gunner 12742 | -5/Proximity Caves | Discovered exit to Factory (range 14) 12772 | -5/Proximity Caves | Entered Factory 12772 | -5/Factory | Evolved 2 slots: Propulsion x1, Utility x1 12773 | -5/Factory | Identified exit to Factory 12775 | -5/Factory | Loaded intel: 19 terminal locations 12776 | -5/Factory | Loaded intel: 4 garrison access locations 12956 | -5/Factory | Discovered exit to Factory (range 15) 13049 | -5/Factory | Identified exit to Upper Caves 13086 | -5/Factory | Build established: Skirmisher 13134 | -5/Factory | Entered another Factory area 13134 | -4/Factory | Evolved 2 slots: Power x1, Utility x1 13281 | -4/Factory | Spotted B-86 Titan 13312 | -4/Factory | Fabricated Arm. Treads? 13385 | -4/Factory | Incoming investigation squad redirected 13406 | -4/Factory | Fabricated Arm. Treads (x2) 13745 | -4/Factory | Build established: Machinist-Gunner 13831 | -4/Factory | Spotted B-86 Titan 13880 | -4/Factory | Destroyed B-86 Titan 14194 | -4/Factory | Lost 5 parts (1p1n2u1w) 14541 | -4/Factory | Destroyed 7 combat bots 14564 | -4/Factory | Discovered new exit (range 13) 14602 | -4/Factory | Entered Extension 14662 | -4/Extension | Rescued a captive Derelict 14663 | -4/Extension | Rescued a captive Derelict 14702 | -4/Extension | Rescued A7 14792 | -4/Extension | Incoming investigation squad redirected 14848 | -4/Extension | Build established: Scavenger-Skirmisher 14946 | -4/Extension | Rescued a captive Derelict 14957 | -4/Extension | Rescued a captive Derelict 14958 | -4/Extension | Rescued a captive Derelict 15082 | -4/Extension | Spotted B-86 Titan 15090 | -4/Extension | Spotted B-86 Titan 15110 | -4/Extension | Destroyed B-86 Titan 15122 | -4/Extension | Allies destroyed B-86 Titan 15168 | -4/Extension | Discovered new exit (range 3) 15519 | -4/Extension | Rescued a captive Derelict 15520 | -4/Extension | Rescued a captive Derelict 15549 | -4/Extension | Build established: Commander-Skirmisher 15551 | -4/Extension | Rescued a captive Derelict 15602 | -4/Extension | First assault squad dispatched 15675 | -4/Extension | Discovered new exit (range 10) 15676 | -4/Extension | Discovered new exit (range 6) 15713 | -4/Extension | Entered Cetus 15713 | -4/Cetus | Accompanied by 9 allies (A7) 15718 | -4/Cetus | Acquired a Cetus Manufacturing Module code from A7 15733 | -4/Cetus | Destroyed Cetus Guard 15736 | -4/Cetus | Spotted Cetus Guard 15736 | -4/Cetus | Spotted Cetus Guard 15746 | -4/Cetus | Spotted Cetus Guard 15748 | -4/Cetus | Allies destroyed Cetus Guard 15751 | -4/Cetus | Allies destroyed Cetus Guard 15754 | -4/Cetus | Destroyed Cetus Guard 15800 | -4/Cetus | Cetus Manufacturing Module disabled 15900 | -4/Cetus | Escorted A7 to Cetus Mainframe 15921 | -4/Cetus | Discovered new exit (range 15) 15948 | -4/Cetus | Entered Archives 15948 | -4/Archives | Accompanied by 3 allies (A7) 15953 | -4/Archives | Received a hacking code to weaken MAIN.C 16050 | -4/Archives | Discovered new exit (range 16) 16069 | -4/Archives | Discovered new exit (range 15) 16082 | -4/Archives | Discovered new exit (range 16) 16112 | -4/Archives | Unable to access archive contents 16479 | -4/Archives | Build established: Scavenger-Mutant 16781 | -4/Archives | Build established: Scavenger-Skirmisher 18043 | -4/Archives | Entered Hub_04(d) 18341 | -4/Hub_04(d) | Spotted B-86 Titan 18521 | -4/Hub_04(d) | Discovered new exit (range 5) 18881 | -4/Hub_04(d) | Network Hub disabled 18912 | -4/Hub_04(d) | Lost 3 parts (1u2w) 19014 | -4/Hub_04(d) | Destroyed B-86 Titan 19017 | -4/Hub_04(d) | Network Hub disabled 19019 | -4/Hub_04(d) | Spotted Lightning 19021 | -4/Hub_04(d) | Spotted Lightning 19035 | -4/Hub_04(d) | Spotted Lightning 19036 | -4/Hub_04(d) | System corruption reached 10% 19040 | -4/Hub_04(d) | Entered Research 19040 | -3/Research | Evolved 2 slots: Utility x2 19041 | -3/Research | Loaded intel: 20 terminal locations 19053 | -3/Research | Identified exit to Armory 19053 | -3/Research | Identified exit to Testing 19069 | -3/Research | Lost 6 parts (3n1u2w) 19130 | -3/Research | Incoming investigation squad redirected 19189 | -3/Research | Found Antimissile System 19342 | -3/Research | Build established: Scavenger-Tank 19574 | -3/Research | First assault squad dispatched 19596 | -3/Research | Incoming assault squad redirected 19622 | -3/Research | Repaired Centrium Medium Armor Plating? 19701 | -3/Research | Repaired Centrium Medium Armor Plating? 19711 | -3/Research | Repaired Lrg. Storage Unit 19749 | -3/Research | Incoming investigation squad redirected 19977 | -3/Research | Build established: Scavenger-Mutant 20317 | -3/Research | Incoming assault squad redirected 20408 | -3/Research | Lost 6 parts (1p2n1u2w) 20501 | -3/Research | Build established: Scavenger-Gunner 20703 | -3/Research | Fabricated Biometal Heavy Treads (x2) 20780 | -3/Research | Fabricated Biometal Heavy Treads (x2) 21001 | -3/Research | Discovered new exit (range 16) 21045 | -3/Research | Entered another Research area 21045 | -2/Research | Evolved 2 slots: Utility x2 21295 | -2/Research | First assault squad dispatched 21303 | -2/Research | Spotted B-90 Cyclops 21312 | -2/Research | Incoming assault squad redirected 21332 | -2/Research | Incoming assault squad redirected 21462 | -2/Research | Garrison activated, responded to threat 21503 | -2/Research | Destroyed 7 combat bots 21537 | -2/Research | Incoming assault squad redirected 21560 | -2/Research | Lost 16 parts (2p5n3u6w) 21675 | -2/Research | Lost 3 parts (1u2w) 21803 | -2/Research | System corruption reached 10% 21811 | -2/Research | Incoming assault squad redirected 21837 | -2/Research | Lost 14 parts (1p4n5u4w) 21849 | -2/Research | Found Fusion Bomb Launcher 21957 | -2/Research | High security lockdown imminent 21980 | -2/Research | Lost 7 parts (2n3u2w) 22037 | -2/Research | High security lockdown engaged 22071 | -2/Research | Spotted Striker 22080 | -2/Research | System corruption reached 30% 22091 | -2/Research | Core integrity fell below 50% 22103 | -2/Research | Destroyed Striker 22109 | -2/Research | Discovered new exit (range 16) 22121 | -2/Research | Core integrity fell below 20% 22124 | -2/Research | Entered Access 22124 | -1/Access | Evolved 2 slots: Propulsion x2 22140 | -1/Access | Lost 25 parts (3p7n9u6w) 22198 | -1/Access | Incoming investigation squad redirected 22355 | -1/Access | Found Antimissile System 22374 | -1/Access | First assault squad dispatched 22396 | -1/Access | Incoming assault squad redirected 22407 | -1/Access | Spotted B-99 Colossus 22528 | -1/Access | Found Prototype Launcher 22529 | -1/Access | Identified Ragnarok Missile Launcher 22532 | -1/Access | Found Ragnarok Missile Launcher 22585 | -1/Access | Found Imp. Powered Armor 22609 | -1/Access | Build established: Scavenger-Sprinter 22638 | -1/Access | Energy Cycler disabled 22660 | -1/Access | Found Prototype Device 22660 | -1/Access | Identified Thermal Barrier 22663 | -1/Access | P-80 Master assimilated allied Administrator 10a 22665 | -1/Access | Identified exit to Surface 22749 | -1/Access | Spotted B-99 Colossus 22799 | *** | Escaped! Last Messages --------------- 22757_ K-01 Serf cleans the Garrison Access. 22758_ Slug penetrates Garrison Access. 22758_ Penetrated by Slug. 22758_ C-30 ARC bursts open, deploying its payload. 22758_ G-73 Enforcer unfolds itself. 22760_ System corrupted: Matter fused (-6). 22760_ Connecting with Garrison Access... 22761_ K-01 Serf cleans the Garrison Access. 22761_ S-43 Plague destroyed. 22761_ Slug penetrates K-01 Serf. 22761_ K-01 Serf destroyed. 22761_ S-43 Plague destroyed. 22765_ Adv. Heat Sink destroyed. 22766_ O-32 Director: "IFF HANDSHAKE FAILED. SECURING TERMINAL." 22775_ O-32 Director uses terminal to summon reinforcements. 22775_ ALERT: Hostiles spotted, dispatching reinforcements to Terminal A009. 22775_ O-32 Director locks terminal. 22793_ W-44 Eye sends out distress signal. 22798_ The Access Shell folds into the floor. Map ----- +----------------------------------------------------+ | ???????????# ???????????????????????????????????? | | ???????????# ???????????????????????????????????? | | ???????????# ???????????????????????????????????? | | ???????????# ???????????????????????????????????? | | ???????????#w #??????????????????????????????????? | | ???????????# #??????????????????????????????????? | | ???????????# #??????????????????????????????????? | | ???????????# +??????????????????????????????????? | | ???????????# #??????????????????????????????????? | | ???????????# #???????????????????????????????w??? | | ???????????# #######################????????????? | | ???????????# ????????????? | | ???????????# ????????????? | | ???????????# ####### ""#?????????????????? | | ???????????# #?????# ""#?????????????????? | | ???????????# #?????# ""#?????????????????? | | ???????????# #?????# T#?????????????????? | | ???????????# #?????# ""#?????????????????? | | ???????????# #?????# ""#?????????????????? | | ???????????# #????## ""##????????????????? | | ???????????# #????# #????????????????? | | ???????????# s#????## ##????????????????? | | ???????????# #?????# #?????????????????? | | ???????????+ #?????# #?????????????????? | | ???????????# #?????# #?????????????????? | | ???????????# #?????# @" #?????????????????? | | ???????????# #?????# "" #?????????????????? | | #######????# #?????# #?????????????????? | | ??# #?????# #?????????????????? | | # #?????# #?????????????????? | | + #?????#""""""""""#?????????????????? | | # #??????????????????????????????????? | | # #??????????????????????????????????? | | + #??????????????????????????????????? | | ############+######??????????????????????????????? | | ???# #???BB????BB???????????????????? | | ???# #???BB????BB???????????????????? | | #### #??????????????????????????????? | | + == #??????????????????????????????? | | #### = ] #??????????????????????????????? | | ???# #??????????????????????????????? | | ???#########+######??????????????????????????????? | | ?????????????????????????????????????????????????? | | ?????????????????????????????????????????????????? | | ?????????????????????????????????????????????????? | | ?????????????????????????????????????????????????? | | ?????????????????????????????????????????????????? | | ?????????????????????????????????????????????????? | | ?????????????????????????????????????????????????? | | ?????????????????????????????????????????????????? | +----------------------------------------------------+ Best States ------------- Heat Dissipation 109 Coolant Potential 65 Energy Generation 54 Energy Capacity 410 Matter Stores 550 Matter Capacity 550 Sight Range 20 Robot Scan Range 22 Terrain Scan Range 20 Terrain Scan Density 110 Jamming Range 16 Power Amplification 40 Base Temperature (-) 200 Armor Coverage 900 Resistance: TH 30 Core Shielding 30 Power Shielding 90 Point Defense Rating 240 Weapon Cycling 15 Phase Shifting 10 Evasion (%) 77 Targeting Accuracy 20 Melee Accuracy 6 Target Analysis 8 Recoil Reduction 6 Kinecelleration 40 Offensive Hacking 12 Defensive Hacking 12 Item Schematics ----------------- Arm. Treads | -8/Materials | Scanalyzed Shock Bomb Launcher | -8/Materials | Scanalyzed Matter Filter | -8/Materials | Scanalyzed Imp. Shield Generator | -7/Factory | Scanalyzed Adv. EMP Blaster | -7/Factory | Scanalyzed Lrn. Tractor Beam | -7/Factory | Scanalyzed Adv. Targeting Computer | -7/Factory | Scanalyzed Combat Drone Bay | -7/Data Miner | Free Lgt. Regenerative Plating | -7/Data Miner | Free Exp. Cesium-ion Thruster | -7/Data Miner | Free Tactical Coordination Suite | -7/Data Miner | Free Mni. Smartbomb Launcher | -7/Data Miner | Free Adv. Medium Treads | -4/Factory | Scanalyzed KE Penetrator | -4/Factory | Scanalyzed Imp. Heavy Siege Treads | -4/Extension | Hacked Quantum Capacitor | -4/Extension | Hacked Biometal Heavy Treads | -3/Research | Downloaded Robot Schematics ------------------ M-13 Machinist | -10/Materials | Hacked S-27 Virus | -7/Data Miner | Free G-50 Soldier | -7/Data Miner | Free L-41 Fighter | -7/Data Miner | Free X-72 Disruptor | -7/Data Miner | Free H-66 Slayer | -7/Data Miner | Free I-36 Angel | -7/Data Miner | Free P-70 Sage | -7/Data Miner | Free I-47 Archangel | -7/Data Miner | Free Fabricated ------------ Arm. Treads | x2 | -7/Factory Arm. Treads | x2 | -7/Factory Arm. Treads | x2 | -7/Factory Arm. Treads | x2 | -4/Factory Arm. Treads | x2 | -4/Factory Biometal Heavy Treads | x2 | -3/Research | Preloaded Biometal Heavy Treads | x2 | -3/Research | Preloaded Alien Tech Used ----------------- None Achievements -------------- None Challenges ------------ None Game ------ Seed FieldIntegrityBroadsword Manual? 0 Play Time 04:04:07 Cumulative 416.0 hours Start 2020.12.09 @ 16:57:19 End 2020.12.15 @ 06:56:17 Sessions 5 Manual Loads 0 Difficulty Rogue Special Mode None Game No. 153 Rogue 150 Adventurer 3 Explorer 0 Win Type 0 Total 7 Types 4/1/0/1/0/1/0/0/0 Lore% 90 Gallery% 94 Achievement% 76 Wizard Run 0 Options --------- ASCII 0 Keyboard 0 Movement Numpad Keybinds 0 Fullscreen 1 Font 18/SmallcapsGlow Map View 76x50 Tactical HUD 1 Map Filters NONE Filters NONE Steam 1 RUN: a573fe19-59c4-43d2-ae00-26a6a30b0711